[Event "*** Titled Tuesday Blitz"]
[Site "Chess.com"]
[Date "2020.12.01"]
[Round "3"]
[White "Malev212"]
[Black "kuban1991"]
[Result "0-1"]
[WhiteElo "2536"]
[BlackElo "2817"]
[TimeControl "180+1"]
[EndTime "10:29:24 PST"]
[Termination "kuban1991 won by resignation"]

1. e4 {[%clk 0:03:00.9]} 1... e6 {[%clk 0:02:59.7]} 2. d4 {[%clk 0:02:55.7]}
2... d5 {[%clk 0:03:00]} 3. Nc3 {[%clk 0:02:55.9]} 3... Bb4 {[%clk 0:02:59.5]}
4. Ne2 {[%clk 0:02:55]} 4... dxe4 {[%clk 0:02:58.9]} 5. a3 {[%clk 0:02:52.8]}
5... Bxc3+ {[%clk 0:02:58.6]} 6. Nxc3 {[%clk 0:02:51.2]} 6... Nc6 {[%clk
0:02:59.5]} 7. Bb5 {[%clk 0:02:40]} 7... Ne7 {[%clk 0:02:58.1]} 8. Nxe4 {[%clk
0:02:29.7]} 8... O-O {[%clk 0:02:56.9]} 9. c3 {[%clk 0:02:24.4]} 9... e5 {[%clk
0:02:45.3]} 10. Bxc6 {[%clk 0:01:47.7]} 10... Nxc6 {[%clk 0:02:46.2]} 11. d5
{[%clk 0:01:47.5]} 11... Ne7 {[%clk 0:02:45.8]} 12. c4 {[%clk 0:01:47.4]} 12...
Bf5 {[%clk 0:02:32.3]} 13. Nc3 {[%clk 0:01:45.5]} 13... Ng6 {[%clk 0:02:24.3]}
14. O-O {[%clk 0:01:40.8]} 14... Qh4 {[%clk 0:02:24.3]} 15. Qe2 {[%clk
0:01:36.5]} 15... Rfe8 {[%clk 0:02:21.9]} 16. g3 {[%clk 0:01:28.4]} 16... Qh3
{[%clk 0:02:11.8]} 17. f3 {[%clk 0:01:28.1]} 17... c6 {[%clk 0:02:08]} 18. Be3
{[%clk 0:01:22.3]} 18... cxd5 {[%clk 0:01:58.3]} 19. cxd5 {[%clk 0:01:21.9]}
19... a6 {[%clk 0:01:54.6]} 20. Rad1 {[%clk 0:01:17.2]} 20... e4 {[%clk
0:01:50.3]} 21. Nxe4 {[%clk 0:01:05.8]} 21... Bxe4 {[%clk 0:01:49.6]} 22. fxe4
{[%clk 0:01:05.8]} 22... Rxe4 {[%clk 0:01:50.5]} 23. Qf3 {[%clk 0:00:54.9]}
23... Re7 {[%clk 0:01:39.9]} 24. Bd4 {[%clk 0:00:53.8]} 24... Qd7 {[%clk
0:01:31.5]} 25. Bc3 {[%clk 0:00:46]} 25... Rae8 {[%clk 0:01:27.5]} 26. Rd2
{[%clk 0:00:44.2]} 26... f6 {[%clk 0:01:10.9]} 27. Qf5 {[%clk 0:00:39.7]} 27...
Qxf5 {[%clk 0:01:08.5]} 28. Rxf5 {[%clk 0:00:39.4]} 28... Rd7 {[%clk 0:01:09.1]}
29. Kf2 {[%clk 0:00:35.8]} 29... Ne7 {[%clk 0:01:05.3]} 30. Rh5 {[%clk
0:00:28.2]} 30... g6 {[%clk 0:00:54.8]} 31. Rh4 {[%clk 0:00:27.8]} 31... Nxd5
{[%clk 0:00:47.6]} 32. Rhd4 {[%clk 0:00:27]} 32... Red8 {[%clk 0:00:47.9]} 33.
a4 {[%clk 0:00:22.3]} 33... Kf7 {[%clk 0:00:47.2]} 34. Ba5 {[%clk 0:00:19.6]}
34... b6 {[%clk 0:00:47]} 35. Bb4 {[%clk 0:00:19.3]} 35... a5 {[%clk 0:00:42.9]}
36. Ba3 {[%clk 0:00:18.3]} 36... f5 {[%clk 0:00:42.2]} 37. b3 {[%clk 0:00:17.1]}
37... Ke6 {[%clk 0:00:38.7]} 38. Re2+ {[%clk 0:00:16.7]} 38... Kf7 {[%clk
0:00:38.9]} 39. Red2 {[%clk 0:00:17.5]} 39... Nf6 {[%clk 0:00:39.1]} 40. Rxd7+
{[%clk 0:00:14.4]} 40... Rxd7 {[%clk 0:00:40]} 41. Rxd7+ {[%clk 0:00:13.7]}
41... Nxd7 {[%clk 0:00:40.9]} 42. Ke3 {[%clk 0:00:13.1]} 42... Nc5 {[%clk
0:00:38.9]} 43. b4 {[%clk 0:00:11.1]} 43... axb4 {[%clk 0:00:35.1]} 44. Bxb4
{[%clk 0:00:09.8]} 44... Nxa4 {[%clk 0:00:35.7]} 45. Kd4 {[%clk 0:00:09.6]}
45... Ke6 {[%clk 0:00:35.4]} 46. h3 {[%clk 0:00:09.3]} 46... g5 {[%clk
0:00:28.3]} 47. Kc4 {[%clk 0:00:08.5]} 47... Ke5 {[%clk 0:00:24.8]} 48. Bd2
{[%clk 0:00:07.6]} 48... g4 {[%clk 0:00:18]} 49. hxg4 {[%clk 0:00:06.5]} 49...
fxg4 {[%clk 0:00:18.9]} 50. Kb5 {[%clk 0:00:05.9]} 50... Nb2 {[%clk 0:00:18.2]}
51. Bf4+ {[%clk 0:00:04.8]} 51... Ke4 {[%clk 0:00:18.3]} 52. Kxb6 {[%clk
0:00:04.8]} 52... Nd3 {[%clk 0:00:17.6]} 53. Bd6 {[%clk 0:00:05.2]} 53... Kf3
{[%clk 0:00:11.6]} 54. Kc6 {[%clk 0:00:06.1]} 54... Nf2 {[%clk 0:00:12.3]} 55.
Kd7 {[%clk 0:00:05.6]} 55... Ne4 {[%clk 0:00:13.2]} 56. Be5 {[%clk 0:00:04.2]}
56... Nxg3 {[%clk 0:00:13.5]} 57. Ke6 {[%clk 0:00:05.1]} 57... h5 {[%clk
0:00:12]} 58. Kf6 {[%clk 0:00:04]} 58... h4 {[%clk 0:00:11.6]} 0-1

[Event "*** Titled Tuesday Blitz"]
[Site "Chess.com"]
[Date "2020.12.01"]
[Round "3"]
[White "javirec"]
[Black "tvjosue"]
[Result "1/2-1/2"]
[WhiteElo "2381"]
[BlackElo "2573"]
[TimeControl "180+1"]
[EndTime "10:29:24 PST"]
[Termination "Game drawn by repetition"]

1. e4 {[%clk 0:03:00.9]} 1... c5 {[%clk 0:02:53.8]} 2. Nf3 {[%clk 0:03:00.5]}
2... Nc6 {[%clk 0:02:52.2]} 3. d4 {[%clk 0:03:00.5]} 3... cxd4 {[%clk
0:02:53.1]} 4. Nxd4 {[%clk 0:03:01.1]} 4... Nf6 {[%clk 0:02:51.1]} 5. Nc3 {[%clk
0:03:01.4]} 5... e5 {[%clk 0:02:48.8]} 6. Ndb5 {[%clk 0:03:01.4]} 6... d6 {[%clk
0:02:47.1]} 7. Nd5 {[%clk 0:03:02]} 7... Nxd5 {[%clk 0:02:43.9]} 8. exd5 {[%clk
0:03:02.9]} 8... Nb8 {[%clk 0:02:44]} 9. c4 {[%clk 0:03:02.8]} 9... a6 {[%clk
0:02:34.2]} 10. Qa4 {[%clk 0:02:37.7]} 10... Nd7 {[%clk 0:02:30.4]} 11. Qa3
{[%clk 0:02:34.2]} 11... Nb6 {[%clk 0:02:11.6]} 12. Nc3 {[%clk 0:02:25.1]} 12...
Bf5 {[%clk 0:02:03.4]} 13. Be3 {[%clk 0:02:24.4]} 13... Nd7 {[%clk 0:02:00.5]}
14. Rc1 {[%clk 0:02:21.2]} 14... Be7 {[%clk 0:01:58.6]} 15. Be2 {[%clk
0:02:21.2]} 15... O-O {[%clk 0:01:57.8]} 16. O-O {[%clk 0:02:20.8]} 16... Bg6
{[%clk 0:01:52.5]} 17. b4 {[%clk 0:02:18.1]} 17... f5 {[%clk 0:01:43.2]} 18. f4
{[%clk 0:02:17.8]} 18... a5 {[%clk 0:01:41.4]} 19. b5 {[%clk 0:02:06.6]} 19...
b6 {[%clk 0:01:14.4]} 20. Na4 {[%clk 0:01:59.3]} 20... e4 {[%clk 0:01:01.4]} 21.
Bd4 {[%clk 0:01:43.3]} 21... Bf6 {[%clk 0:00:56.8]} 22. Qe3 {[%clk 0:01:43.4]}
22... Bxd4 {[%clk 0:00:56.6]} 23. Qxd4 {[%clk 0:01:44.3]} 23... Qc7 {[%clk
0:00:56.7]} 24. Rfd1 {[%clk 0:01:42.9]} 24... Rac8 {[%clk 0:00:56.3]} 25. Kf2
{[%clk 0:01:42.1]} 25... Rfe8 {[%clk 0:00:50.6]} 26. Ke3 {[%clk 0:01:40.8]}
26... Qd8 {[%clk 0:00:49.3]} 27. g3 {[%clk 0:01:36.6]} 27... Nc5 {[%clk
0:00:24.2]} 28. Nxc5 {[%clk 0:01:28.8]} 28... Rxc5 {[%clk 0:00:25.1]} 29. Rc3
{[%clk 0:01:22.5]} 29... Qe7 {[%clk 0:00:24.3]} 30. a4 {[%clk 0:01:18.8]} 30...
h5 {[%clk 0:00:23.1]} 31. h4 {[%clk 0:01:17.9]} 31... Rec8 {[%clk 0:00:22.6]}
32. Rdc1 {[%clk 0:01:15]} 32... Bf7 {[%clk 0:00:22.8]} 33. R1c2 {[%clk
0:01:04.7]} 33... Qc7 {[%clk 0:00:22.7]} 34. Kd2 {[%clk 0:01:02.7]} 34... Kh7
{[%clk 0:00:22]} 35. Bf1 {[%clk 0:00:57.9]} 35... Kh6 {[%clk 0:00:22.1]} 36. Be2
{[%clk 0:00:57.8]} 36... Qb7 {[%clk 0:00:21.4]} 37. Ke3 {[%clk 0:00:53.2]} 37...
Qc7 {[%clk 0:00:19.7]} 38. Kd2 {[%clk 0:00:50.8]} 38... Qe7 {[%clk 0:00:18.9]}
39. Ke3 {[%clk 0:00:46.5]} 39... R8c7 {[%clk 0:00:19.3]} 40. Bf1 {[%clk
0:00:44]} 40... Qd8 {[%clk 0:00:19.1]} 41. Be2 {[%clk 0:00:41.5]} 41... Qc8
{[%clk 0:00:19]} 42. Kd2 {[%clk 0:00:40.3]} 42... Qd8 {[%clk 0:00:18]} 43. Ke3
{[%clk 0:00:38.9]} 43... Qg8 {[%clk 0:00:17.9]} 44. Bf1 {[%clk 0:00:36]} 44...
Qc8 {[%clk 0:00:16.7]} 45. Kd2 {[%clk 0:00:34.2]} 45... Qd8 {[%clk 0:00:16]} 46.
Ke3 {[%clk 0:00:33.1]} 46... Qf6 {[%clk 0:00:16.9]} 47. Be2 {[%clk 0:00:27.8]}
47... Be8 {[%clk 0:00:16]} 48. Qxf6+ {[%clk 0:00:20.1]} 48... gxf6 {[%clk
0:00:16.9]} 49. Kd4 {[%clk 0:00:19.4]} 49... Rg7 {[%clk 0:00:16]} 50. Re3 {[%clk
0:00:18.2]} 50... Rgc7 {[%clk 0:00:15.2]} 51. Rcc3 {[%clk 0:00:17.9]} 51... Bf7
{[%clk 0:00:15.5]} 52. Bf1 {[%clk 0:00:17.2]} 52... Kg6 {[%clk 0:00:13.7]} 53.
Be2 {[%clk 0:00:17.4]} 53... Rc8 {[%clk 0:00:12.4]} 54. Bf1 {[%clk 0:00:17.6]}
54... Be8 {[%clk 0:00:11.9]} 55. Bh3 {[%clk 0:00:14.7]} 55... Bd7 {[%clk
0:00:10.2]} 56. Bf1 {[%clk 0:00:14.1]} 56... R8c7 {[%clk 0:00:10.1]} 57. Be2
{[%clk 0:00:14]} 57... Rc8 {[%clk 0:00:10.6]} 58. Bf1 {[%clk 0:00:14.3]} 58...
Rg8 {[%clk 0:00:11.1]} 59. Be2 {[%clk 0:00:14.1]} 59... Kh6 {[%clk 0:00:11.6]}
60. Bf1 {[%clk 0:00:14.2]} 60... Rcc8 {[%clk 0:00:11.3]} 61. Be2 {[%clk
0:00:14.7]} 61... Rg7 {[%clk 0:00:11.6]} 62. Bf1 {[%clk 0:00:15.2]} 62... Rcg8
{[%clk 0:00:11.6]} 63. Be2 {[%clk 0:00:15.8]} 63... Rf8 {[%clk 0:00:11.7]} 64.
Bf1 {[%clk 0:00:16.4]} 64... Rfg8 {[%clk 0:00:11.8]} 65. Be2 {[%clk 0:00:17]}
65... Rf8 {[%clk 0:00:11.2]} 66. Bf1 {[%clk 0:00:17.5]} 66... Rc8 {[%clk
0:00:09.1]} 67. Be2 {[%clk 0:00:17.4]} 67... Rcg8 {[%clk 0:00:09.5]} 68. Bf1
{[%clk 0:00:17.3]} 68... Rc8 {[%clk 0:00:09.3]} 69. Be2 {[%clk 0:00:17.3]} 69...
Rcg8 {[%clk 0:00:09.1]} 70. Bf1 {[%clk 0:00:17.7]} 70... Rc8 {[%clk 0:00:08.8]}
1/2-1/2

[Event "*** Titled Tuesday Blitz"]
[Site "Chess.com"]
[Date "2020.12.01"]
[Round "3"]
[White "Aborigen_came"]
[Black "PowerThinking2650"]
[Result "0-1"]
[WhiteElo "2734"]
[BlackElo "2450"]
[TimeControl "180+1"]
[EndTime "10:29:26 PST"]
[Termination "PowerThinking2650 won on time"]

1. Nc3 {[%clk 0:02:45.9]} 1... e5 {[%clk 0:02:57.7]} 2. Nf3 {[%clk 0:02:45.2]}
2... Nc6 {[%clk 0:02:56.8]} 3. d4 {[%clk 0:02:44.4]} 3... exd4 {[%clk
0:02:56.7]} 4. Nxd4 {[%clk 0:02:42.2]} 4... Nf6 {[%clk 0:02:56.6]} 5. Bg5 {[%clk
0:02:35.4]} 5... Be7 {[%clk 0:02:54.4]} 6. Nf5 {[%clk 0:02:34.7]} 6... O-O
{[%clk 0:02:52.3]} 7. Nxe7+ {[%clk 0:02:33.6]} 7... Qxe7 {[%clk 0:02:53.2]} 8.
Nd5 {[%clk 0:02:33.2]} 8... Qe5 {[%clk 0:02:49.8]} 9. Bxf6 {[%clk 0:02:32.8]}
9... gxf6 {[%clk 0:02:48.8]} 10. e3 {[%clk 0:02:33]} 10... Ne7 {[%clk
0:02:35.9]} 11. Nxe7+ {[%clk 0:02:25.3]} 11... Qxe7 {[%clk 0:02:36.8]} 12. Bd3
{[%clk 0:02:09.4]} 12... Qb4+ {[%clk 0:02:12.5]} 13. c3 {[%clk 0:02:07.9]} 13...
Qh4 {[%clk 0:01:53.3]} 14. g3 {[%clk 0:02:01.4]} 14... Qh6 {[%clk 0:01:39.5]}
15. Qg4+ {[%clk 0:01:33.7]} 15... Kh8 {[%clk 0:01:38.4]} 16. O-O-O {[%clk
0:01:28.5]} 16... d5 {[%clk 0:01:36.8]} 17. Bf5 {[%clk 0:01:09.5]} 17... c6
{[%clk 0:01:27.1]} 18. Rd4 {[%clk 0:00:51.4]} 18... Qg5 {[%clk 0:01:16.9]} 19.
Bxc8 {[%clk 0:00:43.6]} 19... Raxc8 {[%clk 0:01:17.8]} 20. Qf3 {[%clk
0:00:40.7]} 20... Rcd8 {[%clk 0:01:05.3]} 21. Rf4 {[%clk 0:00:34.7]} 21... Rd6
{[%clk 0:01:03.6]} 22. Rf5 {[%clk 0:00:34.3]} 22... Qg6 {[%clk 0:00:52.8]} 23.
h4 {[%clk 0:00:34]} 23... Re8 {[%clk 0:00:52.8]} 24. h5 {[%clk 0:00:32.7]} 24...
Qh6 {[%clk 0:00:52.9]} 25. Rh4 {[%clk 0:00:30.5]} 25... Kg7 {[%clk 0:00:42.2]}
26. Rg4+ {[%clk 0:00:29.6]} 26... Kf8 {[%clk 0:00:41.8]} 27. Rgf4 {[%clk
0:00:29.8]} 27... Ree6 {[%clk 0:00:41.8]} 28. g4 {[%clk 0:00:29.3]} 28... Ke8
{[%clk 0:00:20.1]} 29. a4 {[%clk 0:00:17.2]} 29... a5 {[%clk 0:00:18.6]} 30. b4
{[%clk 0:00:15.7]} 30... axb4 {[%clk 0:00:18.1]} 31. Rxb4 {[%clk 0:00:14.6]}
31... Rd7 {[%clk 0:00:16.7]} 32. Rbf4 {[%clk 0:00:13]} 32... Rdd6 {[%clk
0:00:16.8]} 33. a5 {[%clk 0:00:12.7]} 33... Qg7 {[%clk 0:00:16]} 34. Kb2 {[%clk
0:00:12.1]} 34... h6 {[%clk 0:00:15.9]} 35. Rb4 {[%clk 0:00:11.1]} 35... Rd7
{[%clk 0:00:15.3]} 36. Rbf4 {[%clk 0:00:10.5]} 36... Ke7 {[%clk 0:00:14.4]} 37.
Rb4 {[%clk 0:00:08.7]} 37... Qh8 {[%clk 0:00:13.2]} 38. Qf4 {[%clk 0:00:05.9]}
38... Qa8 {[%clk 0:00:12.1]} 39. Qxh6 {[%clk 0:00:04.4]} 39... Qxa5 {[%clk
0:00:12.1]} 40. Qf4 {[%clk 0:00:04.7]} 40... Qa6 {[%clk 0:00:11.3]} 41. Qd4
{[%clk 0:00:04.2]} 41... Qe2+ {[%clk 0:00:11]} 42. Ka3 {[%clk 0:00:03.3]} 42...
b5 {[%clk 0:00:10.1]} 43. Qc5+ {[%clk 0:00:02.5]} 43... Ke8 {[%clk 0:00:09.5]}
44. Qb6 {[%clk 0:00:02.5]} 44... Qc2 {[%clk 0:00:08.4]} 45. Rb3 {[%clk
0:00:02.2]} 45... Qc1+ {[%clk 0:00:07.8]} 46. Ka2 {[%clk 0:00:02.4]} 46... Qc2+
{[%clk 0:00:08]} 47. Rb2 {[%clk 0:00:02.5]} 47... Qa4+ {[%clk 0:00:08.1]} 48.
Kb1 {[%clk 0:00:02.8]} 48... Qxg4 {[%clk 0:00:08.7]} 49. Rf4 {[%clk 0:00:01.8]}
49... Qxh5 {[%clk 0:00:08.7]} 50. Ka2 {[%clk 0:00:02.7]} 50... Ke7 {[%clk
0:00:09]} 51. Qb8 {[%clk 0:00:02.9]} 51... Qe5 {[%clk 0:00:08.3]} 52. Qb6 {[%clk
0:00:02.7]} 52... Qd6 {[%clk 0:00:08.2]} 53. Rb3 {[%clk 0:00:02.1]} 53... Qc7
{[%clk 0:00:08.3]} 54. Qc5+ {[%clk 0:00:01.8]} 54... Qd6 {[%clk 0:00:08.3]} 55.
Qb6 {[%clk 0:00:02]} 55... Re5 {[%clk 0:00:08.1]} 56. Ra3 {[%clk 0:00:01.7]}
56... Re4 {[%clk 0:00:07.4]} 57. Ra6 {[%clk 0:00:01.2]} 57... Rxf4 {[%clk
0:00:06.8]} 58. exf4 {[%clk 0:00:02.1]} 58... Rc7 {[%clk 0:00:06.5]} 59. Qd4
{[%clk 0:00:01.8]} 59... Ke6 {[%clk 0:00:06.5]} 60. Qe3+ {[%clk 0:00:01.3]}
60... Kf5 {[%clk 0:00:06.7]} 61. Ra8 {[%clk 0:00:01.9]} 61... Qxf4 {[%clk
0:00:06.6]} 62. Qh3+ {[%clk 0:00:02.2]} 62... Ke4 {[%clk 0:00:06.7]} 0-1

[Event "*** Titled Tuesday Blitz"]
[Site "Chess.com"]
[Date "2020.12.01"]
[Round "3"]
[White "ChelsieMonica"]
[Black "AliKa2810"]
[Result "0-1"]
[WhiteElo "2375"]
[BlackElo "2589"]
[TimeControl "180+1"]
[EndTime "10:29:27 PST"]
[Termination "AliKa2810 won by resignation"]

1. c4 {[%clk 0:03:00.9]} 1... Nf6 {[%clk 0:02:57.8]} 2. Nf3 {[%clk 0:03:01.4]}
2... c6 {[%clk 0:02:54.8]} 3. g3 {[%clk 0:03:01.9]} 3... d5 {[%clk 0:02:55.1]}
4. cxd5 {[%clk 0:03:02.8]} 4... cxd5 {[%clk 0:02:55]} 5. Bg2 {[%clk 0:03:03.7]}
5... Nc6 {[%clk 0:02:55.3]} 6. O-O {[%clk 0:03:04.6]} 6... Bf5 {[%clk
0:02:55.1]} 7. d4 {[%clk 0:03:04.9]} 7... e6 {[%clk 0:02:55.1]} 8. Nc3 {[%clk
0:03:05.3]} 8... Bd6 {[%clk 0:02:54]} 9. a3 {[%clk 0:03:05.4]} 9... h6 {[%clk
0:02:53.8]} 10. h3 {[%clk 0:03:04.7]} 10... O-O {[%clk 0:02:53.9]} 11. Be3
{[%clk 0:03:04.8]} 11... Rc8 {[%clk 0:02:52]} 12. Rc1 {[%clk 0:03:03]} 12... Ne4
{[%clk 0:02:49.5]} 13. Nxe4 {[%clk 0:03:00.5]} 13... Bxe4 {[%clk 0:02:50.4]} 14.
Nd2 {[%clk 0:02:49.5]} 14... Bxg2 {[%clk 0:02:48.1]} 15. Kxg2 {[%clk 0:02:50.4]}
15... f5 {[%clk 0:02:29.4]} 16. Nf3 {[%clk 0:02:33.6]} 16... f4 {[%clk
0:02:20.3]} 17. Bd2 {[%clk 0:02:26.1]} 17... Qf6 {[%clk 0:02:20.3]} 18. e3
{[%clk 0:02:07.6]} 18... fxg3 {[%clk 0:02:13.2]} 19. fxg3 {[%clk 0:02:07.5]}
19... Qg6 {[%clk 0:02:13.8]} 20. Qe1 {[%clk 0:02:03.3]} 20... Ne7 {[%clk
0:02:08.5]} 21. Rxc8 {[%clk 0:02:01.3]} 21... Rxc8 {[%clk 0:02:09.4]} 22. Bc3
{[%clk 0:01:53.8]} 22... Bxa3 {[%clk 0:01:51.5]} 23. bxa3 {[%clk 0:01:51.6]}
23... Qc2+ {[%clk 0:01:50.7]} 24. Bd2 {[%clk 0:01:51.6]} 24... Qe4 {[%clk
0:01:47.5]} 25. Kh2 {[%clk 0:01:37.7]} 25... Rc2 {[%clk 0:01:44.1]} 26. Rf2
{[%clk 0:01:37.6]} 26... Nf5 {[%clk 0:01:41.7]} 27. g4 {[%clk 0:01:28.7]} 27...
Nd6 {[%clk 0:01:35.4]} 28. Ne5 {[%clk 0:01:25]} 28... Rb2 {[%clk 0:01:22]} 29.
Bb4 {[%clk 0:01:17.5]} 29... Rb1 {[%clk 0:01:19.7]} 30. Qxb1 {[%clk 0:00:58.5]}
30... Qxb1 {[%clk 0:01:20.6]} 31. Bxd6 {[%clk 0:00:58.8]} 31... Qe1 {[%clk
0:01:15.1]} 32. Rf3 {[%clk 0:00:47.2]} 32... a5 {[%clk 0:01:12.1]} 33. Kg2
{[%clk 0:00:46.2]} 33... b5 {[%clk 0:01:10.3]} 34. Ng6 {[%clk 0:00:43.2]} 34...
Qb1 {[%clk 0:00:53.6]} 35. Ne5 {[%clk 0:00:33.3]} 35... b4 {[%clk 0:00:51.8]}
36. axb4 {[%clk 0:00:34.2]} 36... axb4 {[%clk 0:00:52.6]} 37. Rf8+ {[%clk
0:00:33]} 37... Kh7 {[%clk 0:00:52.2]} 38. h4 {[%clk 0:00:33.2]} 38... Qe4+
{[%clk 0:00:39.2]} 39. Kf2 {[%clk 0:00:33.3]} 39... g5 {[%clk 0:00:15.1]} 40. h5
{[%clk 0:00:30.6]} 40... b3 {[%clk 0:00:12.4]} 41. Rf7+ {[%clk 0:00:30.5]} 41...
Kg8 {[%clk 0:00:11.9]} 42. Rf8+ {[%clk 0:00:30]} 42... Kg7 {[%clk 0:00:11.4]}
43. Rf7+ {[%clk 0:00:28.8]} 43... Kg8 {[%clk 0:00:11.8]} 44. Rb7 {[%clk
0:00:21]} 44... Qc2+ {[%clk 0:00:10.7]} 45. Kg3 {[%clk 0:00:21.3]} 45... b2
{[%clk 0:00:10.1]} 46. Rb8+ {[%clk 0:00:21.7]} 46... Kg7 {[%clk 0:00:09.8]} 47.
Rb7+ {[%clk 0:00:18.5]} 47... Kg8 {[%clk 0:00:10]} 48. Rb8+ {[%clk 0:00:18.5]}
48... Kg7 {[%clk 0:00:10.4]} 49. Rb6 {[%clk 0:00:18.3]} 49... b1=Q {[%clk
0:00:08.5]} 50. Rxb1 {[%clk 0:00:17.5]} 50... Qxb1 {[%clk 0:00:09.1]} 51. Nf3
{[%clk 0:00:17.9]} 51... Qd3 {[%clk 0:00:07.1]} 52. Be5+ {[%clk 0:00:16.9]}
52... Kg8 {[%clk 0:00:05.7]} 53. Kf2 {[%clk 0:00:17.6]} 53... Qe4 {[%clk
0:00:05.2]} 54. Nh2 {[%clk 0:00:18.1]} 54... Kf7 {[%clk 0:00:04.8]} 55. Ke2
{[%clk 0:00:18.4]} 55... Qg2+ {[%clk 0:00:04.3]} 56. Kd3 {[%clk 0:00:18.5]}
56... Ke7 {[%clk 0:00:03.7]} 57. Kc3 {[%clk 0:00:17.6]} 57... Kd7 {[%clk
0:00:04.3]} 58. Kd3 {[%clk 0:00:17]} 58... Kc6 {[%clk 0:00:04.8]} 59. Kc3 {[%clk
0:00:14.1]} 59... Kb5 {[%clk 0:00:05.1]} 60. Kb3 {[%clk 0:00:14.2]} 60... Qe2
{[%clk 0:00:04.1]} 61. Kc3 {[%clk 0:00:13.3]} 61... Ka4 {[%clk 0:00:03.8]} 62.
Bd6 {[%clk 0:00:12.6]} 62... Qxe3+ {[%clk 0:00:03.8]} 63. Kc2 {[%clk 0:00:11.5]}
63... Qxd4 {[%clk 0:00:03.8]} 64. Nf3 {[%clk 0:00:08.9]} 64... Qe4+ {[%clk
0:00:04.2]} 0-1

[Event "*** Titled Tuesday Blitz"]
[Site "Chess.com"]
[Date "2020.12.01"]
[Round "3"]
[White "A-S-00"]
[Black "RamyresCoelho"]
[Result "1-0"]
[WhiteElo "2312"]
[BlackElo "2090"]
[TimeControl "180+1"]
[EndTime "10:29:29 PST"]
[Termination "A-S-00 won by resignation"]

1. e4 {[%clk 0:03:00.9]} 1... c5 {[%clk 0:03:00.1]} 2. Nf3 {[%clk 0:03:00.3]}
2... d6 {[%clk 0:03:00.1]} 3. d4 {[%clk 0:02:59.6]} 3... cxd4 {[%clk 0:03:00.2]}
4. Nxd4 {[%clk 0:02:59.7]} 4... Nf6 {[%clk 0:03:00.7]} 5. Nc3 {[%clk 0:02:59.5]}
5... a6 {[%clk 0:03:01.1]} 6. g3 {[%clk 0:02:56.6]} 6... e5 {[%clk 0:02:59.9]}
7. Nb3 {[%clk 0:02:55.7]} 7... h5 {[%clk 0:02:59.3]} 8. Bg2 {[%clk 0:02:52]}
8... h4 {[%clk 0:02:59.3]} 9. Bg5 {[%clk 0:02:48.9]} 9... hxg3 {[%clk 0:02:57]}
10. hxg3 {[%clk 0:02:32.3]} 10... Rxh1+ {[%clk 0:02:56.3]} 11. Bxh1 {[%clk
0:02:32.5]} 11... Be7 {[%clk 0:02:57]} 12. Qd2 {[%clk 0:02:27.8]} 12... Be6
{[%clk 0:02:51.3]} 13. O-O-O {[%clk 0:02:23.8]} 13... Nc6 {[%clk 0:02:50.9]} 14.
Bxf6 {[%clk 0:02:09.5]} 14... Bxf6 {[%clk 0:02:47.7]} 15. Qxd6 {[%clk
0:01:47.8]} 15... Bg5+ {[%clk 0:02:33.5]} 16. Kb1 {[%clk 0:01:44]} 16... Qxd6
{[%clk 0:02:16.8]} 17. Rxd6 {[%clk 0:01:42.7]} 17... Ke7 {[%clk 0:02:16.7]} 18.
Rd1 {[%clk 0:01:40.2]} 18... Rh8 {[%clk 0:02:08.9]} 19. Nc5 {[%clk 0:01:28.7]}
19... Nd4 {[%clk 0:01:58.6]} 20. Nxb7 {[%clk 0:01:04.3]} 20... Rh2 {[%clk
0:01:50.3]} 21. Nd5+ {[%clk 0:00:57.3]} 21... Kf8 {[%clk 0:01:36.8]} 22. c3
{[%clk 0:00:56.8]} 22... Nc6 {[%clk 0:01:23.1]} 23. f4 {[%clk 0:00:55.1]} 23...
exf4 {[%clk 0:01:22]} 24. gxf4 {[%clk 0:00:54.8]} 24... Bh4 {[%clk 0:01:16.4]}
25. f5 {[%clk 0:00:54.4]} 25... Bc8 {[%clk 0:01:12.2]} 26. Nd6 {[%clk
0:00:50.7]} 26... Bd7 {[%clk 0:01:02.5]} 27. Nc4 {[%clk 0:00:49]} 27... Nb8
{[%clk 0:00:45.8]} 28. Nb4 {[%clk 0:00:35.5]} 28... Bb5 {[%clk 0:00:44.6]} 29.
Ne3 {[%clk 0:00:31.4]} 29... Be2 {[%clk 0:00:41.1]} 30. Rc1 {[%clk 0:00:26.5]}
30... Bg5 {[%clk 0:00:40]} 31. Nbd5 {[%clk 0:00:26.7]} 31... Bd3+ {[%clk
0:00:30.5]} 32. Ka1 {[%clk 0:00:27]} 32... Re2 {[%clk 0:00:21.9]} 33. Bf3 {[%clk
0:00:26.7]} 33... Rxe3 {[%clk 0:00:21.2]} 34. Nxe3 {[%clk 0:00:26.4]} 34... Bxe3
{[%clk 0:00:22.1]} 35. Rd1 {[%clk 0:00:27]} 35... Bb5 {[%clk 0:00:13.6]} 36.
Rd8+ {[%clk 0:00:26.9]} 36... Ke7 {[%clk 0:00:13.4]} 37. Rxb8 {[%clk 0:00:27.6]}
37... Bf4 {[%clk 0:00:13.4]} 38. Rb7+ {[%clk 0:00:27.5]} 38... Kf6 {[%clk
0:00:13.5]} 39. b3 {[%clk 0:00:25]} 39... Be5 {[%clk 0:00:12.9]} 40. Kb2 {[%clk
0:00:25.1]} 40... Kg5 {[%clk 0:00:11.2]} 41. Rxf7 {[%clk 0:00:23.6]} 41... Bf1
{[%clk 0:00:07.8]} 42. a4 {[%clk 0:00:22]} 42... Kf4 {[%clk 0:00:08]} 43. Bh1
{[%clk 0:00:22]} 43... Ke3 {[%clk 0:00:06.9]} 44. b4 {[%clk 0:00:20.7]} 44...
Kd2 {[%clk 0:00:06.6]} 45. Rd7+ {[%clk 0:00:20.2]} 45... Ke3 {[%clk 0:00:06.9]}
46. b5 {[%clk 0:00:17.3]} 46... axb5 {[%clk 0:00:07.8]} 47. axb5 {[%clk
0:00:17.5]} 47... Bxb5 {[%clk 0:00:08.7]} 48. Rd5 {[%clk 0:00:17.6]} 48... Bf6
{[%clk 0:00:02.3]} 49. Rxb5 {[%clk 0:00:17.4]} 49... Kd3 {[%clk 0:00:03.2]} 50.
Rd5+ {[%clk 0:00:17.2]} 50... Kc4 {[%clk 0:00:03.4]} 51. Rd7 {[%clk 0:00:16.9]}
51... g6 {[%clk 0:00:03.1]} 52. fxg6 {[%clk 0:00:16.3]} 52... Bxc3+ {[%clk
0:00:04]} 53. Kc2 {[%clk 0:00:16.7]} 53... Bf6 {[%clk 0:00:04.6]} 54. g7 {[%clk
0:00:15.9]} 54... Bxg7 {[%clk 0:00:04.2]} 55. Rxg7 {[%clk 0:00:16.5]} 55... Kc5
{[%clk 0:00:05.1]} 56. Rg5+ {[%clk 0:00:16.6]} 56... Kc6 {[%clk 0:00:06]} 57.
Kd3 {[%clk 0:00:16.6]} 57... Kd7 {[%clk 0:00:06.9]} 58. e5 {[%clk 0:00:16.8]}
58... Ke8 {[%clk 0:00:07.8]} 59. Ke4 {[%clk 0:00:17.2]} 59... Kf7 {[%clk
0:00:08.2]} 60. Kf5 {[%clk 0:00:15.9]} 60... Ke7 {[%clk 0:00:08.1]} 61. e6
{[%clk 0:00:16.5]} 61... Kf8 {[%clk 0:00:09]} 62. Kf6 {[%clk 0:00:16]} 1-0